[Event "2nd Goa GM Open 2019"]
[Site "Goa"]
[Date "2019.06.20"]
[Round "4.24"]
[White "Wagh Suyog"]
[Black "Fier, Alexandr"]
[Result "0-1"]
[ECO "E68"]
[WhiteElo "2250"]
[BlackElo "2543"]
[Annotator "ChessBase"]
[PlyCount "96"]
[EventDate "2019.06.17"]
[EventType "swiss"]
[EventCountry "IND"]
[SourceTitle "playchess.com"]
[Source "ChessBase"]
[SourceQuality "1"]
[TimeControl "5400+30"]

1. c4 {[%emt 0:02:04]} Nf6 {[%emt 0:00:00]} 2. Nc3 {[%emt 0:00:05]} g6 {[%emt 0:01:54]} 3. g3 {[%emt 0:01:15]} Bg7 {[%emt 0:00:31]} 4. Bg2 {[%emt 0:00:08]} O-O {[%emt 0:00:05]} 5. Nf3 {[%emt 0:06:05]} d6 {[%emt 0:00:44]} 6. d4 {[%emt 0:03:57]} Nbd7 {[%emt 0:00:25]} 7. O-O {[%emt 0:00:06]} e5 {[%emt 0:00:03]} 8. e4 {[%emt 0:00:06]} exd4 {[%emt 0:00:18]} 9. Nxd4 {[%emt 0:00:04]} Re8 {[%emt 0:00:05]} 10. h3 {[%emt 0:17:55]} Nc5 {[%emt 0:00:23]} 11. Re1 {[%emt 0:00:16]} Bd7 {[%emt 0:00:04]} 12. Bf4 {[%emt 0:06:23]} h6 {[%emt 0:00:23]} 13. g4 {[%emt 0:15:47]} h5 {[%emt 0:00:24]} 14. f3 {[%emt 0:02:19]} hxg4 {[%emt 0:00:05]} 15. hxg4 {[%emt 0:00:52]} Ne6 {[%emt 0:00:05]} 16. Be3 {[%emt 0:03:22]} Nxd4 {[%emt 0:01:11]} 17. Bxd4 {[%emt 0:00:27]} Be6 {[%emt 0:00:06]} 18. Nd5 {[%emt 0:13:24]} Bxd5 {[%emt 0:00:39]} 19. cxd5 {[%emt 0:00:05]} Nd7 {[%emt 0:00:04]} 20. b4 {[%emt 0:02:56]} a5 {[%emt 0:00:56]} 21. a3 {[%emt 0:00:07]} Bxd4+ {[%emt 0:00:04]} 22. Qxd4 {[%emt 0:00:03]} Ne5 {[%emt 0:00:11]} 23. Rac1 {[%emt 0:09:28]} axb4 {[%emt 0:00:05]} 24. axb4 {[%emt 0:00:36]} Ra2 {[%emt 0:00:18]} 25. Qe3 {[%emt 0:08:27]} Qh4 {[%emt 0:00:04]} 26. Re2 {[%emt 0:00:58]} Rea8 {[%emt 0:00:05]} 27. Rf1 {[%emt 0:01:03]} g5 {[%emt 0:03:25]} 28. Qf2 {[%emt 0:00:43]} Qxf2+ {[%emt 0:00:33]} 29. Rexf2 {[%emt 0:00:54]} Nd3 {[%emt 0:03:05]} 30. Rxa2 {[%emt 0:00:05]} Rxa2 {[%emt 0:00:04]} 31. Rd1 {[%emt 0:00:11]} Nf4 {[%emt 0:01:33]} 32. Bf1 {[%emt 0:00:00]} Rc2 {[%emt 0:00:06]} 33. Rd4 {[%emt 0:01:22]} Kg7 {[%emt 0:02:02]} 34. Rc4 {[%emt 0:02:19]} Rxc4 {[%emt 0:00:03]} 35. Bxc4 {[%emt 0:00:02]} Kf6 {[%emt 0:00:05]} 36. Kf2 {[%emt 0:00:08]} Ke5 {[%emt 0:00:02]} 37. Ke3 {[%emt 0:03:00]} Ng2+ {[%emt 0:00:05]} 38. Kf2 {[%emt 0:00:50]} Kd4 {[%emt 0:00:03]} 39. Bf1 {[%emt 0:00:46]} Nf4 {[%emt 0:00:02]} 40. b5 {[%emt 0:00:05]} b6 {[%emt 0:00:03]} 41. Kg3 {[%emt 0:00:23]} Ke3 {[%emt 0:00:04]} 42. Bc4 {[%emt 0:00:43]} f6 {[%emt 0:00:03]} 43. Bf1 {[%emt 0:00:19]} Ng6 {[%emt 0:00:21]} 44. Bg2 {[%emt 0:00:28]} Ke2 {[%emt 0:00:23]} 45. Bh1 {[%emt 0:00:26]} Nf4 {[%emt 0:00:04]} 46. Bg2 {[%emt 0:00:07]} Ke1 {[%emt 0:00:05]} 47. Bh3 {[%emt 0:01:23]} Nxh3 {[%emt 0:00:07]} 48. Kxh3 {[%emt 0:00:01]} Kf2 {[%emt 0:00:06]} 0-1

[Event "2nd Goa GM Open 2019"]
[Site "Goa"]
[Date "2019.06.20"]
[Round "4.25"]
[White "Deshpande, Aniruddha"]
[Black "Gukesh D"]
[Result "0-1"]
[ECO "D78"]
[WhiteElo "2242"]
[BlackElo "2543"]
[Annotator "ChessBase"]
[PlyCount "62"]
[EventDate "2019.06.17"]
[EventType "swiss"]
[EventCountry "IND"]
[SourceTitle "playchess.com"]
[Source "ChessBase"]
[SourceQuality "1"]
[TimeControl "5400+30"]

1. d4 {[%emt 0:01:49]} Nf6 {[%emt 0:00:00]} 2. c4 {[%emt 0:00:06]} g6 {[%emt 0:00:00]} 3. g3 {[%emt 0:00:19]} c6 {[%emt 0:00:08]} 4. Bg2 {[%emt 0:02:51]} d5 {[%emt 0:00:05]} 5. Nf3 {[%emt 0:02:56]} Bg7 {[%emt 0:00:21]} 6. O-O {[%emt 0:01:39]} O-O {[%emt 0:00:53]} 7. Qb3 {[%emt 0:00:46]} dxc4 {[%emt 0:01:09]} 8. Qxc4 {[%emt 0:00:37]} Bf5 {[%emt 0:00:33]} 9. Nc3 {[%emt 0:03:59]} Nbd7 {[%emt 0:01:58]} 10. e3 {[%emt 0:07:25]} Ne4 {[%emt 0:01:17]} 11. Nh4 {[%emt 0:02:46]} Be6 {[%emt 0:02:23]} 12. Qe2 {[%emt 0:01:02]} Nxc3 {[%emt 0:00:08]} 13. bxc3 {[%emt 0:00:05]} Qa5 {[%emt 0:03:09]} 14. Bd2 {[%emt 0:06:03]} Nb6 {[%emt 0:04:52]} 15. Rfb1 {[%emt 0:01:55]} Bc4 {[%emt 0:09:39]} 16. Qe1 {[%emt 0:04:16]} e5 {[%emt 0:10:58]} 17. Bf1 {[%emt 0:01:33]} Bxf1 {[%emt 0:01:12]} 18. Kxf1 {[%emt 0:05:02]} Nc4 {[%emt 0:08:10]} 19. Rb4 {[%emt 0:12:18]} Qa6 {[%emt 0:12:31]} 20. Kg1 {[%emt 0:04:18]} exd4 {[%emt 0:03:16]} 21. exd4 {[%emt 0:00:48]} Rfe8 {[%emt 0:04:01]} 22. Qc1 {[%emt 0:06:26]} c5 {[%emt 0:10:46]} 23. dxc5 {[%emt 0:04:04]} Bf8 {[%emt 0:03:24]} 24. Qe1 {[%emt 0:00:00]} Bg7 {[%emt 0:00:00]} 25. Qc1 {[%emt 0:01:00]} Bf8 {[%emt 0:01:00]} 26. Rab1 {[%emt 0:20:00]} Bxc5 {[%emt 0:02:32]} 27. Rxb7 {[%emt 0:00:30]} Bb6 {[%emt 0:07:34]} 28. Rd7 {[%emt 0:01:45]} Re2 {[%emt 0:01:41]} 29. Be1 {[%emt 0:01:57]} Ne5 {[%emt 0:01:41]} 30. Re7 {[%emt 0:04:56]} Nd3 {[%emt 0:01:58]} 31. Qg5 {[%emt 0:01:00]} Nxe1 {[%emt 0:00:38]} 0-1

[Event "2nd Goa GM Open 2019"]
[Site "Goa"]
[Date "2019.06.20"]
[Round "4.26"]
[White "Venkatesh, M.R."]
[Black "Shelke Sankarsha"]
[Result "1-0"]
[ECO "A08"]
[WhiteElo "2490"]
[BlackElo "2239"]
[Annotator "ChessBase"]
[PlyCount "97"]
[EventDate "2019.06.17"]
[EventType "swiss"]
[EventCountry "IND"]
[SourceTitle "playchess.com"]
[Source "ChessBase"]
[SourceQuality "1"]
[TimeControl "5400+30"]

1. e4 {[%emt 0:00:00]} c5 {[%emt 0:03:40]} 2. Nf3 {[%emt 0:00:40]} e6 {[%emt 0:00:14]} 3. d3 {[%emt 0:00:19]} Nc6 {[%emt 0:01:08]} 4. g3 {[%emt 0:00:06]} d5 {[%emt 0:03:18]} 5. Nbd2 {[%emt 0:00:07]} Nf6 {[%emt 0:00:17]} 6. Bg2 {[%emt 0:00:10]} Be7 {[%emt 0:01:05]} 7. O-O {[%emt 0:00:10]} O-O {[%emt 0:01:28]} 8. Re1 {[%emt 0:00:38]} b5 {[%emt 0:03:50]} 9. e5 {[%emt 0:00:15]} Nd7 {[%emt 0:00:35]} 10. Nf1 {[%emt 0:00:08]} b4 {[%emt 0:05:51]} 11. h4 {[%emt 0:00:39]} a5 {[%emt 0:01:27]} 12. Bf4 {[%emt 0:00:45]} a4 {[%emt 0:04:10]} 13. a3 {[%emt 0:00:53]} bxa3 {[%emt 0:02:16]} 14. bxa3 {[%emt 0:00:22]} Nd4 {[%emt 0:05:55]} 15. N1h2 {[%emt 0:03:11]} Ba6 {[%emt 0:03:44]} 16. Nxd4 {[%emt 0:12:56]} cxd4 {[%emt 0:00:07]} 17. Qg4 {[%emt 0:00:04]} Kh8 {[%emt 0:10:18]} 18. Nf3 {[%emt 0:11:08]} Qb6 {[%emt 0:09:30]} 19. Bg5 {[%emt 0:03:25]} Bc5 {[%emt 0:01:18]} 20. Rab1 {[%emt 0:00:57]} Qa7 {[%emt 0:07:53]} 21. Bc1 {[%emt 0:02:50]} Nb8 {[%emt 0:03:16]} 22. Ng5 {[%emt 0:03:51]} Nc6 {[%emt 0:05:09]} 23. Bxd5 {[%emt 0:13:53]} f5 {[%emt 0:08:31]} 24. exf6 {[%emt 0:21:12]} exd5 {[%emt 0:00:11]} 25. f7 {[%emt 0:03:16]} Rxf7 {[%emt 0:02:22]} 26. Nxf7+ {[%emt 0:01:43]} Qxf7 {[%emt 0:00:04]} 27. Qe6 {[%emt 0:00:21]} Qxe6 {[%emt 0:00:46]} 28. Rxe6 {[%emt 0:00:02]} Rc8 {[%emt 0:01:08]} 29. Bf4 {[%emt 0:00:36]} Kg8 {[%emt 0:05:49]} 30. Bd6 {[%emt 0:01:32]} Ba7 {[%emt 0:00:26]} 31. f4 {[%emt 0:01:26]} Kf7 {[%emt 0:02:00]} 32. f5 {[%emt 0:00:11]} Re8 {[%emt 0:02:56]} 33. Rbe1 {[%emt 0:00:11]} Rc8 {[%emt 0:01:40]} 34. g4 {[%emt 0:01:46]} Bb8 {[%emt 0:02:46]} 35. g5 {[%emt 0:02:45]} Bxd6 {[%emt 0:00:25]} 36. Rxd6 {[%emt 0:00:16]} Rc7 {[%emt 0:01:10]} 37. g6+ {[%emt 0:02:13]} hxg6 {[%emt 0:00:04]} 38. fxg6+ {[%emt 0:00:01]} Kf8 {[%emt 0:00:06]} 39. Rde6 {[%emt 0:00:20]} Rc8 {[%emt 0:00:39]} 40. Rf1+ {[%emt 0:00:37]} Kg8 {[%emt 0:00:05]} 41. Rb1 {[%emt 0:03:06]} Kf8 {[%emt 0:01:59]} 42. h5 {[%emt 0:00:12]} Kg8 {[%emt 0:00:40]} 43. Kh2 {[%emt 0:00:55]} Kf8 {[%emt 0:00:29]} 44. Kg3 {[%emt 0:00:07]} Kg8 {[%emt 0:00:03]} 45. Kh4 {[%emt 0:00:12]} Kf8 {[%emt 0:00:06]} 46. Kg5 {[%emt 0:00:13]} Kg8 {[%emt 0:00:08]} 47. h6 {[%emt 0:00:12]} gxh6+ {[%emt 0:00:08]} 48. Kxh6 {[%emt 0:00:03]} Kh8 {[%emt 0:00:21]} 49. Rbe1 {[%emt 0:00:37]} 1-0

[Event "2nd Goa GM Open 2019"]
[Site "Goa"]
[Date "2019.06.20"]
[Round "4.27"]
[White "Nguyen, Phuoc Tam"]
[Black "Gagare, Shardul"]
[Result "0-1"]
[ECO "D52"]
[WhiteElo "2238"]
[BlackElo "2482"]
[Annotator "ChessBase"]
[PlyCount "72"]
[EventDate "2019.06.17"]
[EventType "swiss"]
[EventCountry "IND"]
[SourceTitle "playchess.com"]
[Source "ChessBase"]
[SourceQuality "1"]
[TimeControl "5400+30"]

1. d4 {[%emt 0:00:20]} d5 {[%emt 0:00:00]} 2. Nf3 {[%emt 0:00:11]} Nf6 {[%emt 0:00:01]} 3. c4 {[%emt 0:00:09]} c6 {[%emt 0:00:30]} 4. Nc3 {[%emt 0:00:07]} e6 {[%emt 0:00:17]} 5. Bg5 {[%emt 0:00:26]} Nbd7 {[%emt 0:00:24]} 6. e3 {[%emt 0:00:36]} Qa5 {[%emt 0:00:44]} 7. Nd2 {[%emt 0:03:02]} Bb4 {[%emt 0:01:28]} 8. Qc2 {[%emt 0:00:29]} O-O {[%emt 0:00:38]} 9. Bxf6 {[%emt 0:01:37]} Nxf6 {[%emt 0:00:09]} 10. Bd3 {[%emt 0:00:23]} Rd8 {[%emt 0:22:46]} 11. O-O {[%emt 0:04:24]} Qc7 {[%emt 0:06:24]} 12. cxd5 {[%emt 0:06:35]} exd5 {[%emt 0:00:19]} 13. Nf3 {[%emt 0:01:32]} Bd6 {[%emt 0:00:46]} 14. h3 {[%emt 0:02:37]} Re8 {[%emt 0:07:06]} 15. Rab1 {[%emt 0:01:56]} Qe7 {[%emt 0:00:47]} 16. Bf5 {[%emt 0:04:04]} Ne4 {[%emt 0:05:38]} 17. Bxc8 {[%emt 0:00:12]} Raxc8 {[%emt 0:00:07]} 18. Qe2 {[%emt 0:16:34]} f5 {[%emt 0:00:34]} 19. Nxe4 {[%emt 0:00:18]} fxe4 {[%emt 0:03:12]} 20. Nd2 {[%emt 0:01:26]} Qe6 {[%emt 0:06:01]} 21. b4 {[%emt 0:01:03]} b5 {[%emt 0:01:16]} 22. a3 {[%emt 0:03:35]} Bb8 {[%emt 0:06:53]} 23. Rbc1 {[%emt 0:05:46]} Qd6 {[%emt 0:00:47]} 24. g3 {[%emt 0:00:10]} Re6 {[%emt 0:00:51]} 25. Rc3 {[%emt 0:00:16]} Rg6 {[%emt 0:03:04]} 26. Rfc1 {[%emt 0:00:12]} Qd7 {[%emt 0:01:25]} 27. Kg2 {[%emt 0:04:08]} Rf8 {[%emt 0:00:56]} 28. Qh5 {[%emt 0:15:44]} Rf5 {[%emt 0:07:02]} 29. Qh4 {[%emt 0:01:47]} Rgf6 {[%emt 0:08:40]} 30. Rf1 {[%emt 0:01:30]} Qf7 {[%emt 0:01:20]} 31. Kg1 {[%emt 0:03:23]} h5 {[%emt 0:11:33]} 32. g4 {[%emt 0:03:12]} Qg6 {[%emt 0:03:12]} 33. f4 {[%emt 0:04:54]} exf3 {[%emt 0:00:05]} 34. Kf2 {[%emt 0:00:05]} Rg5 {[%emt 0:00:48]} 35. Rg1 {[%emt 0:01:56]} Bh2 {[%emt 0:00:28]} 36. Rcc1 {[%emt 0:01:15]} Qd3 {[%emt 0:00:35]} 0-1

[Event "2nd Goa GM Open 2019"]
[Site "Goa"]
[Date "2019.06.20"]
[Round "4.28"]
[White "Rahman, Ziaur"]
[Black "Deshmukh, Anup"]
[Result "1-0"]
[ECO "A45"]
[WhiteElo "2481"]
[BlackElo "2229"]
[Annotator "ChessBase"]
[PlyCount "99"]
[EventDate "2019.06.17"]
[EventType "swiss"]
[EventCountry "IND"]
[SourceTitle "playchess.com"]
[Source "ChessBase"]
[SourceQuality "1"]
[TimeControl "5400+30"]

1. d4 {[%emt 0:00:47]} Nf6 {[%emt 0:00:00]} 2. Bg5 {[%emt 0:00:12]} d5 {[%emt 0:03:14]} 3. e3 {[%emt 0:01:00]} Nbd7 {[%emt 0:01:49]} 4. Nf3 {[%emt 0:02:53]} g6 {[%emt 0:01:18]} 5. Nbd2 {[%emt 0:04:04]} Bg7 {[%emt 0:00:09]} 6. Be2 {[%emt 0:01:19]} O-O {[%emt 0:00:15]} 7. O-O {[%emt 0:00:13]} c6 {[%emt 0:06:01]} 8. c4 {[%emt 0:01:05]} h6 {[%emt 0:02:55]} 9. Bh4 {[%emt 0:00:27]} Ne4 {[%emt 0:02:55]} 10. Rc1 {[%emt 0:06:38]} g5 {[%emt 0:03:38]} 11. Bg3 {[%emt 0:01:10]} Nxg3 {[%emt 0:07:48]} 12. hxg3 {[%emt 0:01:37]} e5 {[%emt 0:00:26]} 13. cxd5 {[%emt 0:01:45]} cxd5 {[%emt 0:00:13]} 14. dxe5 {[%emt 0:10:07]} Nxe5 {[%emt 0:00:11]} 15. Nd4 {[%emt 0:00:19]} g4 {[%emt 0:05:10]} 16. Qc2 {[%emt 0:02:53]} Qg5 {[%emt 0:01:30]} 17. Bd3 {[%emt 0:02:56]} Bd7 {[%emt 0:02:14]} 18. Bf5 {[%emt 0:01:48]} Rac8 {[%emt 0:07:08]} 19. Qb1 {[%emt 0:00:54]} Bxf5 {[%emt 0:10:45]} 20. Qxf5 {[%emt 0:08:22]} Nc4 {[%emt 0:03:52]} 21. N2b3 {[%emt 0:05:11]} Qxf5 {[%emt 0:09:40]} 22. Nxf5 {[%emt 0:00:07]} Bxb2 {[%emt 0:01:36]} 23. Rcd1 {[%emt 0:02:12]} Kh7 {[%emt 0:04:51]} 24. Rxd5 {[%emt 0:01:20]} Rfd8 {[%emt 0:00:54]} 25. Rfd1 {[%emt 0:00:41]} Bf6 {[%emt 0:00:25]} 26. f4 {[%emt 0:10:10]} gxf3 {[%emt 0:01:27]} 27. gxf3 {[%emt 0:00:05]} a5 {[%emt 0:00:26]} 28. Kf2 {[%emt 0:04:01]} b5 {[%emt 0:02:46]} 29. Rxd8 {[%emt 0:01:47]} Rxd8 {[%emt 0:00:23]} 30. Rh1 {[%emt 0:00:25]} Bg7 {[%emt 0:01:45]} 31. Nbd4 {[%emt 0:02:00]} Bf8 {[%emt 0:02:05]} 32. g4 {[%emt 0:00:40]} Kg6 {[%emt 0:00:37]} 33. Nxb5 {[%emt 0:01:27]} Rd2+ {[%emt 0:01:01]} 34. Kg3 {[%emt 0:00:09]} Rxa2 {[%emt 0:00:20]} 35. Rc1 {[%emt 0:00:37]} Ne5 {[%emt 0:01:58]} 36. Nh4+ {[%emt 0:04:37]} Kh7 {[%emt 0:00:45]} 37. f4 {[%emt 0:00:37]} Rb2 {[%emt 0:02:38]} 38. Nd4 {[%emt 0:00:32]} Nd3 {[%emt 0:07:31]} 39. Rc7 {[%emt 0:01:33]} Kg8 {[%emt 0:01:41]} 40. Rc8 {[%emt 0:00:36]} Nc5 {[%emt 0:00:55]} 41. Kf3 {[%emt 0:04:15]} a4 {[%emt 0:01:39]} 42. Nhf5 {[%emt 0:00:48]} Nd7 {[%emt 0:01:33]} 43. Nxh6+ {[%emt 0:02:31]} Kh7 {[%emt 0:00:38]} 44. Nxf7 {[%emt 0:00:29]} a3 {[%emt 0:00:26]} 45. Ng5+ {[%emt 0:00:53]} Kg8 {[%emt 0:00:32]} 46. Ra8 {[%emt 0:03:04]} Nb6 {[%emt 0:00:19]} 47. Ra7 {[%emt 0:00:19]} Nd5 {[%emt 0:01:34]} 48. Nde6 {[%emt 0:01:28]} Rb3 {[%emt 0:01:11]} 49. Ra8 {[%emt 0:00:24]} Rxe3+ {[%emt 0:00:06]} 50. Kf2 {[%emt 0:00:05]} 1-0

[Event "2nd Goa GM Open 2019"]
[Site "Goa"]
[Date "2019.06.20"]
[Round "4.30"]
[White "Srihari L R"]
[Black "Himanshu, Sharma"]
[Result "1/2-1/2"]
[ECO "D11"]
[WhiteElo "2214"]
[BlackElo "2446"]
[Annotator "NA"]
[PlyCount "179"]
[EventDate "2019.06.17"]
[EventType "swiss"]
[EventCountry "IND"]
[SourceTitle "playchess.com"]
[Source "ChessBase"]
[SourceQuality "1"]
[TimeControl "5400+30"]

1. d4 {[%emt 0:00:00]} d5 {[%emt 0:00:00]} 2. c4 {[%emt 0:00:00]} c6 {[%emt 0:00:00]} 3. Nf3 {[%emt 0:00:00]} Nf6 {[%emt 0:00:00]} 4. Qc2 {[%emt 0:00:00]} g6 {[%emt 0:03:10]} 5. Bf4 {[%emt 0:00:05]} Bg7 {[%emt 0:01:08]} 6. e3 {[%emt 0:00:23]} Bf5 {[%emt 0:03:51]} 7. Qb3 {[%emt 0:00:22]} Qb6 {[%emt 0:01:29]} 8. Nc3 {[%emt 0:06:31]} O-O {[%emt 0:02:39]} 9. Be2 {[%emt 0:07:09]} Nbd7 {[%emt 0:03:07]} 10. h3 {[%emt 0:00:49]} h6 {[%emt 0:01:59]} 11. Nd2 {[%emt 0:09:08]} Rfe8 {[%emt 0:09:05]} 12. g4 {[%emt 0:02:29]} Be6 {[%emt 0:00:05]} 13. Qc2 {[%emt 0:07:41]} a5 {[%emt 0:14:25]} 14. O-O-O {[%emt 0:07:02]} Qa7 {[%emt 0:08:59]} 15. e4 {[%emt 0:06:31]} dxc4 {[%emt 0:02:09]} 16. Be3 {[%emt 0:00:39]} Nd5 {[%emt 0:10:24]} 17. exd5 {[%emt 0:00:51]} Bxd5 {[%emt 0:01:08]} 18. Nxc4 {[%emt 0:29:48]} Bxh1 {[%emt 0:00:56]} 19. d5 {[%emt 0:03:10]} Qb8 {[%emt 0:01:08]} 20. Rxh1 {[%emt 0:00:42]} cxd5 {[%emt 0:00:39]} 21. Nxd5 {[%emt 0:00:51]} b5 {[%emt 0:00:23]} 22. Ncb6 {[%emt 0:01:08]} Nxb6 {[%emt 0:06:54]} 23. Nxb6 {[%emt 0:00:11]} Qb7 {[%emt 0:07:43]} 24. Rd1 {[%emt 0:00:41]} Rac8 {[%emt 0:00:17]} 25. Nxc8 {[%emt 0:00:09]} Rxc8 {[%emt 0:00:04]} 26. Bc5 {[%emt 0:00:07]} e6 {[%emt 0:01:40]} 27. Rd3 {[%emt 0:02:40]} b4 {[%emt 0:07:43]} 28. Rd6 {[%emt 0:02:43]} Bf8 {[%emt 0:02:19]} 29. Ba6 {[%emt 0:00:28]} Bxd6 {[%emt 0:00:17]} 30. Bxb7 {[%emt 0:00:11]} Rxc5 {[%emt 0:00:02]} 31. Kd1 {[%emt 0:00:54]} Rxc2 {[%emt 0:00:05]} 32. Kxc2 {[%emt 0:00:05]} Kg7 {[%emt 0:00:44]} 33. Kd3 {[%emt 0:00:45]} Kf6 {[%emt 0:00:37]} 34. Ke4 {[%emt 0:00:33]} Kg5 {[%emt 0:00:25]} 35. Kf3 {[%emt 0:00:09]} Be5 {[%emt 0:00:36]} 36. b3 {[%emt 0:00:09]} h5 {[%emt 0:01:02]} 37. Bc6 {[%emt 0:02:29]} h4 {[%emt 0:00:36]} 38. Be8 {[%emt 0:01:11]} f5 {[%emt 0:00:50]} 39. gxf5 {[%emt 0:00:10]} gxf5 {[%emt 0:01:00]} 40. Bd7 {[%emt 0:00:36]} Kf6 {[%emt 0:00:06]} 41. Ke3 {[%emt 0:01:05]} Bc7 {[%emt 0:00:16]} 42. f4 {[%emt 0:00:30]} Bb6+ {[%emt 0:00:17]} 43. Kf3 {[%emt 0:00:06]} Ke7 {[%emt 0:00:07]} 44. Bb5 {[%emt 0:00:11]} Kd6 {[%emt 0:00:21]} 45. Bc4 {[%emt 0:02:16]} e5 {[%emt 0:00:18]} 46. fxe5+ {[%emt 0:00:07]} Kxe5 {[%emt 0:00:04]} 47. Bb5 {[%emt 0:00:08]} Bd8 {[%emt 0:00:13]} 48. Bd7 {[%emt 0:00:33]} Bg5 {[%emt 0:00:44]} 49. Bc8 {[%emt 0:00:22]} Bd2 {[%emt 0:00:02]} 50. Ke2 {[%emt 0:00:38]} Bf4 {[%emt 0:00:34]} 51. Kf3 {[%emt 0:00:09]} Bg3 {[%emt 0:00:05]} 52. Bd7 {[%emt 0:00:04]} f4 {[%emt 0:00:16]} 53. Be8 {[%emt 0:00:51]} Kd4 {[%emt 0:00:03]} 54. Bc6 {[%emt 0:00:13]} Kc3 {[%emt 0:00:04]} 55. Ke2 {[%emt 0:00:27]} Bh2 {[%emt 0:00:46]} 56. Bd5 {[%emt 0:01:22]} Kb2 {[%emt 0:01:26]} 57. Bc6 {[%emt 0:00:51]} Kxa2 {[%emt 0:00:10]} 58. Ba4 {[%emt 0:00:06]} Kb2 {[%emt 0:00:06]} 59. Kf3 {[%emt 0:00:07]} Kc2 {[%emt 0:00:18]} 60. Ke2 {[%emt 0:00:06]} Bg3 {[%emt 0:00:09]} 61. Kf3 {[%emt 0:00:17]} Kd3 {[%emt 0:02:29]} 62. Bd7 {[%emt 0:01:43]} Kc3 {[%emt 0:00:02]} 63. Ba4 {[%emt 0:00:06]} Kd2 {[%emt 0:00:03]} 64. Bd7 {[%emt 0:00:30]} Ke1 {[%emt 0:00:22]} 65. Bb5 {[%emt 0:00:04]} Bh2 {[%emt 0:00:08]} 66. Kg2 {[%emt 0:00:41]} Bg3 {[%emt 0:00:25]} 67. Kf3 {[%emt 0:00:06]} Kd2 {[%emt 0:00:17]} 68. Bd7 {[%emt 0:00:10]} Kd3 {[%emt 0:00:07]} 69. Bc6 {[%emt 0:00:20]} Kd4 {[%emt 0:00:02]} 70. Bd7 {[%emt 0:00:22]} Ke5 {[%emt 0:00:03]} 71. Bc6 {[%emt 0:00:11]} Be1 {[%emt 0:00:07]} 72. Ke2 {[%emt 0:00:50]} Bc3 {[%emt 0:00:23]} 73. Kf3 {[%emt 0:00:24]} Bd4 {[%emt 0:01:25]} 74. Be8 {[%emt 0:00:18]} Bb6 {[%emt 0:00:11]} 75. Bc6 {[%emt 0:00:08]} Bd8 {[%emt 0:00:20]} 76. Be8 {[%emt 0:00:19]} Bg5 {[%emt 0:00:26]} 77. Bc6 {[%emt 0:00:06]} Kd4 {[%emt 0:00:09]} 78. Bd7 {[%emt 0:00:46]} Kc3 {[%emt 0:00:32]} 79. Ba4 {[%emt 0:00:07]} Kd2 {[%emt 0:00:28]} 80. Kf2 {[%emt 0:00:21]} Bd8 {[%emt 0:00:30]} 81. Kf3 {[%emt 0:00:08]} Bc7 {[%emt 0:00:09]} 82. Kf2 {[%emt 0:00:06]} Bb6+ {[%emt 0:00:44]} 83. Kf3 {[%emt 0:00:03]} Be3 {[%emt 0:00:20]} 84. Bd7 {[%emt 0:00:16]} Ke1 {[%emt 0:00:15]} 85. Bb5 {[%emt 0:00:11]} Bd2 {[%emt 0:00:34]} 86. Kg2 {[%emt 0:00:49]} Bc3 {[%emt 0:00:39]} 87. Kf3 {[%emt 0:00:11]} Be5 {[%emt 0:00:03]} 88. Kg2 {[%emt 0:00:25]} Bf6 {[%emt 0:02:26]} 89. Kf3 {[%emt 0:00:07]} Bg5 {[%emt 0:00:04]} 90. Ke4 1/2-1/2

[Event "2nd Goa GM Open 2019"]
[Site "Goa"]
[Date "2019.06.21"]
[Round "5.4"]
[White "Deepan Chakkravarthy J."]
[Black "Iniyan, P."]
[Result "1/2-1/2"]
[ECO "B90"]
[WhiteElo "2557"]
[BlackElo "2525"]
[Annotator "ChessBase"]
[PlyCount "72"]
[EventDate "2019.06.17"]
[EventType "swiss"]
[EventCountry "IND"]
[SourceTitle "playchess.com"]
[Source "ChessBase"]
[SourceQuality "1"]
[TimeControl "5400+30"]

1. e4 {[%emt 0:00:00]} c5 {[%emt 0:00:02]} 2. Nf3 {[%emt 0:00:00]} d6 {[%emt 0:00:08]} 3. d4 {[%emt 0:00:00]} cxd4 {[%emt 0:00:05]} 4. Nxd4 {[%emt 0:00:00]} Nf6 {[%emt 0:00:09]} 5. Nc3 {[%emt 0:00:00]} a6 {[%emt 0:00:08]} 6. Bd3 {[%emt 0:00:46]} e6 {[%emt 0:01:05]} 7. g4 {[%emt 0:01:27]} b5 {[%emt 0:02:30]} 8. g5 {[%emt 0:02:27]} Nfd7 {[%emt 0:00:03]} 9. h4 {[%emt 0:01:27]} Bb7 {[%emt 0:00:08]} 10. a3 {[%emt 0:01:34]} Nb6 {[%emt 0:03:39]} 11. Nb3 {[%emt 0:19:59]} Nc6 {[%emt 0:01:09]} 12. f4 {[%emt 0:05:55]} d5 {[%emt 0:03:03]} 13. Qe2 {[%emt 0:00:39]} b4 {[%emt 0:04:46]} 14. axb4 {[%emt 0:06:20]} Nxb4 {[%emt 0:00:09]} 15. Be3 {[%emt 0:08:56]} Rc8 {[%emt 0:02:57]} 16. O-O-O {[%emt 0:01:02]} Rxc3 {[%emt 0:14:58]} 17. bxc3 {[%emt 0:00:49]} Na2+ {[%emt 0:02:28]} 18. Kd2 {[%emt 0:09:48]} dxe4 {[%emt 0:00:12]} 19. Bxb6 {[%emt 0:03:09]} Qxb6 {[%emt 0:00:05]} 20. Bxe4 {[%emt 0:02:32]} Bb4 {[%emt 0:06:30]} 21. Bxb7 {[%emt 0:05:43]} Bxc3+ {[%emt 0:07:11]} 22. Kd3 {[%emt 0:00:01]} Qxb7 {[%emt 0:00:47]} 23. Qe4 {[%emt 0:00:53]} Nb4+ {[%emt 0:02:36]} 24. Ke3 {[%emt 0:00:29]} Qb6+ {[%emt 0:04:12]} 25. Kf3 {[%emt 0:01:00]} O-O {[%emt 0:00:08]} 26. h5 {[%emt 0:05:22]} Nd5 {[%emt 0:03:09]} 27. Nd4 {[%emt 0:07:03]} Bxd4 {[%emt 0:06:48]} 28. Qxd4 {[%emt 0:00:43]} Qc6 {[%emt 0:00:59]} 29. h6 {[%emt 0:01:37]} Nc3+ {[%emt 0:01:29]} 30. Kg4 {[%emt 0:02:20]} e5 {[%emt 0:00:27]} 31. Qxe5 {[%emt 0:01:09]} f6 {[%emt 0:00:23]} 32. Qe7 {[%emt 0:09:33]} Qg2+ {[%emt 0:00:22]} 33. Kh4 {[%emt 0:00:02]} Qf2+ {[%emt 0:02:00]} 34. Kg4 {[%emt 0:00:05]} f5+ {[%emt 0:02:38]} 35. Kh3 {[%emt 0:00:07]} Qf3+ {[%emt 0:00:03]} 36. Kh2 {[%emt 0:00:02]} Qf2+ {[%emt 0:00:06]} 1/2-1/2